fUSD/lending_fUSD_20250128
["ID","MTS","AMOUNT","RATE_DAILY","PERIOD"]
[350668377,1738047133048,770.398064,0.00011644,2]
[350668378,1738047133480,770.398064,0.00011759,2]
[350668379,1738047133805,770.398064,0.00011858,2]
[350668380,1738047134118,770.398064,0.00011875,2]
[350668381,1738047134483,770.398064,0.00011876,2]
[350668382,1738047134815,770.398064,0.00011878,2]
[350668383,1738047135148,770.398064,0.00011896,2]
[350668384,1738047135470,770.398064,0.00011917,2]
[350668385,1738047135801,770.398064,0.00011917,2]
[350668386,1738047136148,770.398064,0.00011917,2]
[350668387,1738047136481,770.398064,0.00011917,2]
[350668388,1738047136801,770.398064,0.00011917,2]
[350668389,1738047136969,153.337649,0.00010958,2]
[350668390,1738047137121,770.398064,0.00011917,2]
[350668391,1738047137283,153.337649,0.00010958,2]
[350668392,1738047137437,770.398064,0.00011917,2]
[350668393,1738047137596,153.337649,0.00010958,2]
[350668394,1738047137743,770.398064,0.00011917,2]
[350668395,1738047138015,153.337649,0.00011542,2]
[350668396,1738047138073,770.398064,0.00011917,2]
[350668397,1738047138342,153.337649,0.00011759,2]
[350668398,1738047138403,770.398064,0.00011918,2]
[350668399,1738047138649,153.337649,0.00011875,2]
[350668400,1738047138953,153.337649,0.00011878,2]
[350668401,1738047139171,770.398064,0.00011918,2]
[350668402,1738047139257,153.337649,0.00011917,2]
[350668403,1738047139495,770.398064,0.00011918,2]
[350668404,1738047139579,153.337649,0.00011917,2]
[350668405,1738047139841,770.398064,0.00011918,2]
[350668406,1738047139890,153.337649,0.00011917,2]
[350668407,1738047140147,770.398064,0.00011918,2]
[350668408,1738047140198,153.337649,0.00011917,2]
[350668409,1738047140471,770.398064,0.00011918,2]
[350668410,1738047140505,153.337649,0.00011918,2]
[350668411,1738047140818,153.337649,0.00011918,2]
[350668412,1738047140853,770.398064,0.00011988,2]
[350668413,1738047141136,770.398064,0.00011988,2]
[350668414,1738047141167,153.337649,0.00011918,2]
[350668415,1738047141454,153.337649,0.00011988,2]
[350668416,1738047141488,770.398064,0.00011988,2]
[350668417,1738047141759,153.337649,0.00011988,2]
[350668418,1738047141806,770.398064,0.00011988,2]
[350668419,1738047142063,153.337649,0.00011995,2]
[350668420,1738047142158,770.398064,0.00011988,2]
[350668421,1738047142237,150.808827,0.00010958,2]
[350668422,1738047142358,153.337649,0.00011996,2]
[350668423,1738047142499,770.398064,0.00011995,2]
[350668424,1738047142542,150.808827,0.00010958,2]
[350668425,1738047142660,153.337649,0.00011997,2]
[350668426,1738047142865,150.808827,0.00011067,2]
[350668427,1738047142922,770.398064,0.00011995,2]
[350668428,1738047143153,150.808827,0.00011759,2]
[350668429,1738047143250,770.398064,0.00011996,2]
[350668430,1738047143389,153.337649,0.00011998,2]
[350668431,1738047143576,770.398064,0.00011996,2]
[350668432,1738047143659,150.808827,0.00011876,2]
[350668433,1738047143693,153.337649,0.00011998,2]
[350668434,1738047143970,150.808827,0.00011917,2]
[350668435,1738047144128,153.337649,0.00011998,2]
[350668436,1738047144288,150.808827,0.00011917,2]
[350668437,1738047144320,770.398064,0.00011997,2]
[350668438,1738047144429,153.337649,0.00011999,2]
[350668439,1738047144608,150.808827,0.00011917,2]
[350668440,1738047144641,770.398064,0.00011997,2]
[350668441,1738047144970,150.808827,0.00011918,2]
[350668442,1738047145002,770.398064,0.00011998,2]
[350668443,1738047145302,150.808827,0.00011918,2]
[350668444,1738047145360,770.398064,0.00011998,2]
[350668445,1738047145614,150.808827,0.00011918,2]
[350668446,1738047145679,770.398064,0.00011998,2]
[350668447,1738047145928,150.808827,0.00011988,2]
[350668448,1738047146005,770.398064,0.00011998,2]
[350668449,1738047146274,150.808827,0.00011995,2]
[350668450,1738047146692,150.808827,0.00011996,2]
[350668451,1738047146745,690.48700677,0.00011998,2]
[350668452,1738047146769,79.91105723,0.00011998,2]
[350668453,1738047146920,150.808827,0.00011998,2]
[350668454,1738047147068,770.398064,0.00011998,2]
[350668455,1738047147219,150.808827,0.00011998,2]
[350668456,1738047147385,770.398064,0.00011998,2]
[350668457,1738047147559,150.808827,0.00011998,2]
[350668458,1738047147702,770.398064,0.00011999,2]
[350668459,1738047148017,770.398064,0.00011999,2]
[350668460,1738047148338,770.398064,0.00011999,2]
[350668461,1738047148379,150.808827,0.00011999,2]
[350668462,1738047163888,459.108593,0.00010958,2]
[350668463,1738047164209,459.108593,0.00010958,2]
[350668464,1738047164532,459.108593,0.00010958,2]
[350668465,1738047164849,459.108593,0.00010958,2]
[350668466,1738047165161,459.108593,0.00010958,2]
[350668467,1738047165454,161.94,0.00010137,2]
[350668468,1738047165558,459.108593,0.00010958,2]
[350668469,1738047165870,459.108593,0.00011067,2]
[350668470,1738047166183,459.108593,0.00011542,2]
[350668471,1738047166489,459.108593,0.00011644,2]
[350668472,1738047166829,459.108593,0.00011759,2]
[350668473,1738047167243,459.108593,0.00011858,2]
[350668474,1738047167684,459.108593,0.00011875,2]
[350668475,1738047168051,459.108593,0.00011876,2]
[350668476,1738047168356,459.108593,0.00011878,2]
[350668477,1738047169112,459.108593,0.00011896,2]
[350668478,1738047169465,459.108593,0.00011917,2]
[350668479,1738047169789,459.108593,0.00011917,2]
[350668480,1738047170116,459.108593,0.00011917,2]
[350668481,1738047170422,459.108593,0.00011917,2]
[350668483,1738047171156,459.108593,0.00011917,2]
[350668484,1738047171484,459.108593,0.00011917,2]
[350668485,1738047171781,459.108593,0.00011917,2]
[350668486,1738047172089,459.108593,0.00011917,2]
[350668487,1738047172822,459.108593,0.00011917,2]
[350668488,1738047173167,459.108593,0.00011918,2]
[350668489,1738047173576,459.108593,0.00011918,2]
[350668490,1738047174069,459.108593,0.00011918,2]
[350668491,1738047174378,459.108593,0.00011918,2]
[350668492,1738047174698,459.108593,0.00011918,2]
[350668493,1738047175018,459.108593,0.00011918,2]
[350668494,1738047175397,459.108593,0.00011988,2]
[350668495,1738047175729,459.108593,0.00011988,2]
[350668496,1738047176047,459.108593,0.00011988,2]
[350668497,1738047176391,459.108593,0.00011988,2]
[350668498,1738047176688,459.108593,0.00011988,2]
[350668499,1738047177024,459.108593,0.00011995,2]
[350668500,1738047177366,459.108593,0.00011995,2]
[350668501,1738047177681,459.108593,0.00011996,2]
[350668502,1738047178015,459.108593,0.00011996,2]
[350668503,1738047178348,459.108593,0.00011997,2]
[350668504,1738047178664,459.108593,0.00011997,2]
[350668505,1738047178987,459.108593,0.00011998,2]
[350668506,1738047179306,459.108593,0.00011998,2]
[350668507,1738047179633,459.108593,0.00011998,2]
[350668508,1738047179949,459.108593,0.00011998,2]
[350668509,1738047180260,459.108593,0.00011998,2]
[350668510,1738047180583,459.108593,0.00011998,2]
[350668511,1738047180898,459.108593,0.00011998,2]
[350668512,1738047181214,459.108593,0.00011999,2]
[350668513,1738047181538,459.108593,0.00011999,2]
[350668514,1738047182296,459.108593,0.00011999,2]
[350668515,1738047304465,655.67268586,0.00011999,2]
[350668516,1738047606824,200.0,0.00011999,2]
[350668517,1738047627950,157.998727,0.00010958,2]
[350668518,1738047628301,157.998727,0.00011918,2]
[350668527,1738048195302,180.11,0.00010137,2]
[350668531,1738048232477,-295.95409882,0.00012053,2]
[350668532,1738048232489,-2472.20314682,0.00012054,2]
[350668533,1738048232500,-643.949821,0.00012054,2]
[350668534,1738048232511,-643.949821,0.00012054,2]
[350668535,1738048232521,-153.337649,0.00012054,2]
[350668536,1738048232531,-770.398064,0.00012054,2]
[350668537,1738048232540,-770.398064,0.00012054,2]
[350668538,1738048232550,-459.108593,0.00012054,2]
[350668539,1738048232561,-459.108593,0.00012054,2]
[350668540,1738048232572,-550.0,0.00013,2]
[350668541,1738048232584,-150.0,0.00014999,2]
[350668542,1738048232594,-600.0,0.00015,2]
[350668543,1738048232604,-559.07515344,0.00015,2]
[350668544,1738048232618,-12491.07484656,0.00015,2]
[350668545,1738048232629,-710.59,0.00016128,2]
[350668546,1738048232640,-500.0,0.00016192,2]
[350668547,1738048232652,-161.94,0.00016813,2]
[350668548,1738048232662,-180.11,0.00016813,2]
[350668549,1738048232674,-650.0,0.00017,2]
[350668550,1738048232684,-500.0,0.00017319,2]
[350668551,1738048232695,-500.0,0.00017319,2]
[350668552,1738048232706,-176.02710789,0.00017354,2]
[350668553,1738048232716,-1935.512,0.00017354,2]
[350668554,1738048232727,-3301.44,0.0001791,2]
[350668555,1738048232737,-1000.0,0.00017999,2]
[350668556,1738048232746,-669.47883399,0.00017999,2]
[350668557,1738048232756,-50000.0,0.00018,2]
[350668558,1738048232767,-1141.21,0.00018019,2]
[350668559,1738048232778,-580.44,0.00018068,2]
[350668560,1738048232789,-1202.43,0.000182,2]
[350668561,1738048232798,-238.78473898,0.00018203,2]
[350668562,1738048232809,-23880.0,0.00018203,2]
[350668563,1738048232819,-189.36374128,0.00018225,2]
[350668564,1738048232830,-1500.0,0.00018225,2]
[350668565,1738048232841,-171.92,0.00018235,2]
[350668566,1738048232851,-191.18,0.00018377,30]
[350668568,1738048232867,-710.59,0.00018392,2]
[350668570,1738048232877,-250.0,0.00018434,2]
[350668572,1738048232888,-367.9,0.00018444,2]
[350668573,1738048232899,-200.0,0.00018448,2]
[350668575,1738048232910,-162.89,0.00018581,2]
[350668577,1738048232920,-641.63,0.00018611,2]
[350668579,1738048232930,-224.32816707,0.0001863,2]
[350668581,1738048232941,-207.38592523,0.0001863,2]
[350668583,1738048232951,-505.69041896,0.0001863,2]
[350668586,1738048232963,-503.95547605,0.0001863,2]
[350668588,1738048232974,-219.19392387,0.0001863,2]
[350668590,1738048232983,-161.51088036,0.0001863,2]
[350668592,1738048232993,-543.31436712,0.0001863,2]
[350668594,1738048233005,-502.51076237,0.0001863,2]
[350668596,1738048233016,-502.8393175,0.0001863,2]
[350668598,1738048233028,-529.25815556,0.0001863,2]
[350668600,1738048233038,-501.64824973,0.0001863,2]
[350668602,1738048233050,-502.05323416,0.0001863,2]
[350668603,1738048233061,-505.05675639,0.0001863,2]
[350668604,1738048233071,-502.49172829,0.0001863,2]
[350668605,1738048233082,-501.27476777,0.0001863,2]
[350668606,1738048233092,-514.42436993,0.0001863,2]
[350668607,1738048233104,-217.18761524,0.0001863,2]
[350668608,1738048233115,-502.2670086,0.0001863,2]
[350668609,1738048233126,-500.0,0.0001863,2]
[350668611,1738048233137,-158.45223675,0.0001863,2]
[350668613,1738048233148,-506.13969731,0.0001863,2]
[350668615,1738048233159,-500.0,0.0001863,2]
[350668617,1738048233169,-500.0,0.0001863,2]
[350668619,1738048233180,-500.0,0.0001863,2]
[350668621,1738048233190,-500.0,0.0001863,2]
[350668623,1738048233200,-500.0,0.0001863,2]
[350668625,1738048233210,-500.0,0.0001863,2]
[350668627,1738048233219,-500.0,0.0001863,2]
[350668629,1738048233229,-500.0,0.0001863,2]
[350668631,1738048233239,-500.0,0.0001863,2]
[350668633,1738048233249,-3301.44,0.00018805,2]
[350668635,1738048233261,-2020.0,0.00018845,2]
[350668637,1738048233273,-1861.0,0.00018845,2]
[350668638,1738048233285,-1106.688,0.00018845,2]
[350668639,1738048233296,-1262.0,0.00018845,2]
[350668640,1738048233306,-632.476,0.00018845,2]
[350668641,1738048233315,-151.455,0.00018845,2]
[350668642,1738048233325,-516.0,0.00018845,2]
[350668643,1738048233335,-500.0,0.00018998,2]
[350668644,1738048233344,-500.0,0.00018999,2]
[350668645,1738048233354,-151.0,0.00019,2]
[350668646,1738048233365,-151.0,0.00019,2]
[350668647,1738048233380,-700.0,0.00019,2]
[350668648,1738048233391,-1000.0,0.00019054,2]
[350668649,1738048233402,-525.57444071,0.00019068,2]
[350668650,1738048233413,-150.16412591,0.00019068,2]
[350668651,1738048233423,-175.19148024,0.00019068,2]
[350668652,1738048233432,-525.57444071,0.00019151,2]
[350668653,1738048233442,-175.19148024,0.00019151,2]
[350668654,1738048233451,-150.0,0.00019178,2]
[350668655,1738048233460,-150.16412591,0.00019233,2]
[350668656,1738048233471,-152.74738017,0.00019239,2]
[350668657,1738048233481,-525.57444071,0.0001926,2]
[350668658,1738048233492,-175.19148024,0.0001926,2]
[350668659,1738048233501,-151.0,0.00019289,2]
[350668660,1738048233513,-151.0,0.00019289,2]
[350668661,1738048233524,-152.74738017,0.00019299,2]
[350668662,1738048233534,-641.63,0.00019299,2]
[350668663,1738048233545,-2319.90736238,0.00019309,2]
[350668664,1738048233556,-4232.1,0.00019339,2]
[350668665,1738048233567,-1315.08,0.00019339,2]
[350668666,1738048233577,-930.07,0.00019339,2]
[350668667,1738048233587,-9999.99,0.00019339,2]
[350668668,1738048233597,-9999.99,0.00019339,2]
[350668669,1738048233607,-299.99,0.00019339,7]
[350668670,1738048233617,-9999.99,0.00019339,2]
[350668671,1738048233628,-499.99,0.00019339,2]
[350668672,1738048233638,-150.99,0.00019339,2]
[350668673,1738048233648,-8859.57,0.00019339,2]
[350668674,1738048233657,-999.99,0.00019339,2]
[350668675,1738048233667,-150.99,0.00019339,2]
[350668676,1738048233677,-525.57444071,0.00019342,2]
[350668677,1738048233687,-175.19148024,0.00019342,2]
[350668678,1738048233696,-152.74738017,0.00019359,2]
[350668679,1738048233706,-150.16412591,0.00019397,2]
[350668680,1738048233716,-275.31010957,0.000194,2]
[350668681,1738048233726,-152.74738017,0.00019419,2]
[350668682,1738048233736,-525.57444071,0.00019452,2]
[350668683,1738048233746,-175.19148024,0.00019452,2]
[350668684,1738048233756,-275.31010953,0.00019456,2]
[350668685,1738048233766,-152.74738017,0.00019479,2]
[350668686,1738048233776,-500.0,0.00019511,2]
[350668687,1738048233786,-500.0,0.00019511,2]
[350668688,1738048233796,-275.31010953,0.00019511,2]
[350668689,1738048233806,-150.0,0.00019525,2]
[350668690,1738048233816,-525.57444071,0.00019534,2]
[350668691,1738048233827,-175.19148024,0.00019534,2]
[350668692,1738048233837,-152.74738017,0.00019539,2]
[350668693,1738048233850,-275.31010953,0.00019567,2]
[350668694,1738048233860,-1695.0,0.00019581,2]
[350668695,1738048233871,-200.6255,0.00019583,2]
[350668696,1738048233880,-150.16412591,0.00019589,2]
[350668697,1738048233891,-3814.1401406,0.00019599,2]
[350668698,1738048233901,-152.74738017,0.000196,2]
[350668699,1738048233910,-1070.02780862,0.000196,2]
[350668700,1738048233920,-986.75964497,0.000196,2]
[350668701,1738048233931,-32480.0,0.00019602,2]
[350668702,1738048233942,-525.57444071,0.00019616,2]
[350668703,1738048233952,-175.19148024,0.00019616,2]
[350668704,1738048233962,-275.31010953,0.00019622,2]
[350668705,1738048233972,-438.99,0.00019632,2]
[350668706,1738048233982,-773.96,0.00019632,2]
[350668707,1738048233992,-773.96,0.00019632,2]
[350668708,1738048234002,-438.99,0.00019632,2]
[350668709,1738048234014,-773.96,0.00019632,2]
[350668710,1738048234024,-438.99,0.00019632,2]
[350668711,1738048234035,-438.99,0.00019632,2]
[350668712,1738048234045,-773.96,0.00019632,2]
[350668713,1738048234055,-335.96,0.00019632,2]
[350668714,1738048234065,-438.99,0.00019632,2]
[350668715,1738048234075,-152.74738017,0.0001966,2]
[350668716,1738048234085,-275.31010953,0.00019678,2]
[350668717,1738048234096,-150.0,0.00019683,2]
[350668718,1738048234106,-3301.44,0.00019701,2]
[350668719,1738048234116,-525.57444071,0.00019726,2]
[350668720,1738048234126,-175.19148024,0.00019726,2]
[350668721,1738048234136,-275.31010953,0.00019733,2]
[350668722,1738048234146,-1001.97535354,0.00019745,2]
[350668723,1738048234156,-150.16412591,0.00019753,2]
[350668724,1738048234166,-1695.0,0.00019783,2]
[350668725,1738048234176,-275.31010953,0.00019789,2]
[350668726,1738048234186,-525.57444071,0.00019808,2]
[350668727,1738048234196,-175.19148024,0.00019808,2]
[350668728,1738048234206,-275.31010953,0.00019844,2]
[350668729,1738048234216,-525.57444071,0.0001989,2]
[350668730,1738048234226,-175.19148024,0.0001989,2]
[350668731,1738048234235,-5005.8214,0.00019899,2]
[350668732,1738048234245,-500.0,0.00019899,2]
[350668733,1738048234255,-500.0,0.00019899,2]
[350668734,1738048234266,-639.76670971,0.00019899,2]
[350668735,1738048234276,-500.0,0.00019899,2]
[350668736,1738048234285,-500.0,0.00019899,2]
[350668737,1738048234296,-500.0,0.00019899,2]
[350668738,1738048234306,-500.0,0.00019899,2]
[350668739,1738048234316,-500.0,0.00019899,2]
[350668740,1738048234325,-500.0,0.00019899,2]
[350668741,1738048234335,-500.0,0.00019899,2]
[350668742,1738048234345,-500.0,0.00019899,2]
[350668743,1738048234354,-500.0,0.00019899,2]
[350668744,1738048234364,-500.0,0.00019899,2]
[350668745,1738048234374,-500.0,0.00019899,2]
[350668746,1738048234383,-500.0,0.00019899,2]
[350668747,1738048234393,-500.0,0.00019899,2]
[350668748,1738048234627,-500.0,0.00019899,2]
[350668749,1738048234637,-281.06145715,0.00019899,2]
[350668750,1738048234646,-298.22265891,0.00019899,2]
[350668751,1738048234655,-500.0,0.00019899,2]
[350668752,1738048234664,-500.0,0.00019899,2]
[350668753,1738048234673,-500.0,0.00019899,2]
[350668754,1738048234682,-6054.5608,0.000199,2]
[350668755,1738048234691,-500.0,0.000199,2]
[350668756,1738048234699,-1000.0,0.000199,2]
[350668757,1738048234708,-6431.2323,0.000199,2]
[350668758,1738048234718,-73848.51154453,0.000199,2]
[350668759,1738048234736,-1084.8559225,0.000199,2]
[350668762,1738048238206,-152.74738017,0.0001972,2]
[350668763,1738048238215,-462.52487373,0.00019899,2]
[350668764,1738048238224,-3496.3677461,0.000199,2]
[350668772,1738048240367,-441.94705544,0.00019045,2]
[350668773,1738048240527,-500.0,0.00019045,2]
[350668774,1738048240539,-163.85294456,0.00019045,2]
[350668775,1738048240548,-1105.8,0.0001975,2]
[350668776,1738048240558,-152.74738017,0.0001978,2]
[350668777,1738048240567,-639.04978617,0.000199,2]
[350668778,1738048240578,-322.310568,0.000199,2]
[350668779,1738048241667,-24129.76511345,0.000199,2]
[350668780,1738048241679,-610.24380002,0.000199,2]
[350668781,1738048241690,-12242.1096697,0.000199,2]
[350668782,1738048241699,-5000.0,0.000199,2]
[350668783,1738048241708,-2319.90736239,0.000199,2]
[350668784,1738048241716,-151.0,0.000199,2]
[350668785,1738048241725,-293.386883,0.000199,2]
[350668786,1738048241734,-164.29648912,0.000199,2]
[350668787,1738048241743,-275.31010953,0.000199,2]
[350668788,1738048241752,-115.98948625,0.000199,31]
[350668818,1738048246311,-152.74738017,0.0001984,2]
[350668819,1738048246321,-40.34051375,0.000199,31]
[350668820,1738048246331,-156.33,0.000199,31]
[350668821,1738048246341,-156.33,0.000199,31]
[350668823,1738048246350,-156.33,0.000199,31]
[350668824,1738048246359,-156.33,0.000199,31]
[350668825,1738048246368,-156.33,0.000199,31]
[350668826,1738048246377,-156.33,0.000199,31]
[350668827,1738048246385,-156.33,0.000199,31]
[350668828,1738048246394,-156.33,0.000199,31]
[350668829,1738048246403,-156.33,0.000199,31]
[350668830,1738048246413,-156.33,0.000199,31]
[350668831,1738048246422,-156.33,0.000199,31]
[350668832,1738048246431,-156.33,0.000199,31]
[350668833,1738048246440,-156.33,0.000199,31]
[350668834,1738048246448,-156.33,0.000199,31]
[350668835,1738048246457,-156.33,0.000199,31]
[350668836,1738048246466,-151.91956718,0.000199,2]
[350668837,1738048246475,-2625.6109196,0.000199,2]
[350668838,1738048246483,-164.27797924,0.000199,2]
[350668839,1738048246492,-150.16412591,0.00019918,2]
[350668840,1738048246501,-1695.0,0.00019985,2]
[350668841,1738048246510,-219.32641021,0.0001999,2]
[350668842,1738048246519,-593.51488594,0.0001999,2]
[350668844,1738048264754,200.0,0.00011864,2]
[350668845,1738048265045,200.0,0.00011841,2]
[350668846,1738048265354,200.0,0.00011876,2]
[350668847,1738048265636,200.0,0.00011861,2]
[350668849,1738048283812,200.0,0.00011868,2]
[350668850,1738048284090,200.0,0.00011849,2]
[350668851,1738048284375,200.0,0.00011884,2]
[350668852,1738048284668,200.0,0.00011844,2]
[350668853,1738048302745,152.529793,0.00010958,2]
[350668854,1738048303077,152.529793,0.00011918,2]
[350668855,1738048306098,200.0,0.00011865,2]
[350668856,1738048364346,152.529781,0.00010958,2]
[350668857,1738048364701,152.529781,0.00011918,2]
[350668858,1738048630087,182.410715,0.00010958,2]
[350668859,1738048630426,182.410715,0.00011878,2]
[350668860,1738048630741,182.410715,0.00011918,2]
[350668861,1738048631102,182.410715,0.00011997,2]
[350668871,1738049044565,156.68,0.00010137,2]
[350669450,1738049431643,-550.0,0.00013,2]
[350669451,1738049431652,-201.48,0.00013699,2]
[350669452,1738049431662,-150.0,0.00014161,2]
[350669453,1738049431673,-150.0,0.000143,2]
[350669454,1738049431683,-600.0,0.00015,2]
[350669455,1738049431695,-207.77857646,0.00015064,2]
[350669456,1738049431707,-300.0,0.00016299,2]
[350669457,1738049431717,-12067.20280531,0.000163,4]
[350669458,1738049431728,-701.34,0.00016796,2]
[350669459,1738049431738,-650.0,0.00017,2]
[350669460,1738049431748,-600.0,0.00017319,2]
[350669461,1738049431758,-4122.0,0.000175,2]
[350669462,1738049431769,-232.14,0.00018144,2]
[350669463,1738049431780,-1000.0,0.00018266,2]
[350669464,1738049431791,-663.48,0.00018271,2]
[350669465,1738049431802,-250.0,0.00018271,2]
[350669466,1738049431812,-408.3,0.0001829,2]
[350669467,1738049431823,-281.81,0.00018295,2]
[350669468,1738049431834,-1320.57,0.00018337,2]
[350669469,1738049431844,-613.83,0.00018713,2]
[350669470,1738049431855,-171.57,0.00018835,2]
[350669471,1738049431866,-371.69,0.00018878,2]
[350669472,1738049431877,-663.48,0.00018947,2]
[350669473,1738049431887,-192.26,0.00018971,30]
[350669474,1738049431898,-150.0,0.00018999,2]
[350669475,1738049431908,-24675.79,0.00019,2]
[350669476,1738049431919,-700.0,0.00019,2]
[350669477,1738049431928,-701.34,0.00019059,2]
[350669478,1738049431938,-1765.85,0.00019178,2]
[350669479,1738049431948,-157.825,0.00019178,2]
[350669480,1738049431958,-150.0,0.00019178,2]
[350669481,1738049431967,-1000.0,0.00019239,2]
[350669482,1738049431977,-368.4157,0.00019239,2]
[350669483,1738049431988,-1320.57,0.00019254,2]
[350669484,1738049431999,-999.99,0.00019339,2]
[350669485,1738049432009,-150.99,0.00019339,2]
[350669486,1738049432020,-9999.99,0.00019339,2]
[350669487,1738049432031,-599.43,0.00019339,2]
[350669488,1738049432041,-304.43,0.00019585,2]
[350669489,1738049432052,-150.0,0.00019585,2]
[350669490,1738049432062,-150.0,0.00019585,2]
[350669491,1738049432073,-150.0,0.00019585,2]
[350669492,1738049432083,-150.0,0.00019585,2]
[350669493,1738049432094,-150.0,0.00019585,2]
[350669494,1738049432104,-150.0,0.00019585,2]
[350669495,1738049432115,-150.0,0.00019585,2]
[350669496,1738049432126,-150.0,0.00019585,2]
[350669497,1738049432136,-2275.7954139,0.00019599,2]
[350669498,1738049432146,-663.48,0.00019623,2]
[350669499,1738049432156,-298.31,0.00019632,2]
[350669501,1738049432168,-1745.64,0.00019632,2]
[350669504,1738049432179,-300.0,0.00019632,2]
[350669506,1738049432188,-298.31,0.00019632,2]
[350669508,1738049432203,-298.31,0.00019632,2]
[350669509,1738049432214,-438.99,0.00019639,2]
[350669510,1738049432224,-773.96,0.00019639,2]
[350669511,1738049432234,-773.96,0.00019639,2]
[350669512,1738049432246,-438.99,0.00019639,2]
[350669513,1738049432257,-773.96,0.00019639,2]
[350669514,1738049432266,-438.99,0.00019639,2]
[350669515,1738049432276,-637.0,0.00019644,2]
[350669516,1738049432287,-150.0,0.00019644,2]
[350669517,1738049432297,-568.0,0.00019644,2]
[350669518,1738049432307,-1866.0,0.00019644,2]
[350669520,1738049432318,-782.0,0.00019644,2]
[350669522,1738049432329,-909.0,0.00019644,2]
[350669524,1738049432339,-1262.0,0.00019644,2]
[350669526,1738049432349,-2950.0,0.00019644,2]
[350669528,1738049432360,-538.0,0.00019644,2]
[350669530,1738049432371,-269.259,0.00019644,2]
[350669533,1738049432382,-150.0,0.00019683,2]
[350669535,1738049432392,-2500.0,0.000197,2]
[350669537,1738049432402,-4648.9253,0.000197,2]
[350669539,1738049432411,-1000.0,0.000197,2]
[350669541,1738049432421,-152.95006087,0.000197,2]
[350669543,1738049432431,-5000.0,0.000197,2]
[350669545,1738049432440,-951.048,0.000197,2]
[350669547,1738049432451,-152.74738017,0.000197,2]
[350669549,1738049432462,-152.95006085,0.00019725,2]
[350669551,1738049432474,-151.86761818,0.00019739,2]
[350669554,1738049432485,-152.95006085,0.0001975,2]
[350669556,1738049432495,-199.99,0.00019754,2]
[350669558,1738049432505,-152.95006085,0.00019775,2]
[350669560,1738049432515,-500.0,0.00019783,2]
[350669562,1738049432525,-500.0,0.00019799,2]
[350669564,1738049432535,-500.0,0.00019799,2]
[350669566,1738049432544,-500.0,0.00019799,2]
[350669568,1738049432554,-500.0,0.00019799,2]
[350669570,1738049432563,-500.0,0.00019799,2]
[350669572,1738049432574,-500.0,0.00019799,2]
[350669575,1738049432584,-500.0,0.00019799,2]
[350669577,1738049432595,-500.0,0.00019799,2]
[350669579,1738049432605,-500.0,0.00019799,2]
[350669581,1738049432616,-527.36,0.00019799,2]
[350669583,1738049432627,-500.0,0.00019799,2]
[350669585,1738049432638,-500.0,0.00019799,2]
[350669588,1738049432647,-500.0,0.00019799,2]
[350669590,1738049432657,-500.0,0.00019799,2]
[350669592,1738049432667,-500.0,0.00019799,2]